[Event "*** SCC Grand Prix: Titled Tuesday Blitz"]
[Site "Chess.com"]
[Date "2020.09.08"]
[Round "3"]
[White "fabianvivasz"]
[Black "Bayernbk"]
[Result "0-1"]
[WhiteElo "2297"]
[BlackElo "2523"]
[TimeControl "180+1"]
[EndTime "10:30:15 PDT"]
[Termination "Bayernbk won by resignation"]

1. e4 {[%clk 0:02:57.9]} 1... e6 {[%clk 0:03:00.4]} 2. d4 {[%clk 0:02:51.4]}
2... d5 {[%clk 0:03:00.9]} 3. Nd2 {[%clk 0:02:50.4]} 3... c5 {[%clk 0:02:58.7]}
4. Ngf3 {[%clk 0:02:50]} 4... cxd4 {[%clk 0:02:57.7]} 5. Nxd4 {[%clk 0:02:49.7]}
5... Nc6 {[%clk 0:02:58.3]} 6. Bb5 {[%clk 0:02:48.2]} 6... Bd7 {[%clk
0:02:58.7]} 7. Bxc6 {[%clk 0:02:48.2]} 7... bxc6 {[%clk 0:02:58]} 8. O-O {[%clk
0:02:46.9]} 8... Bd6 {[%clk 0:02:55.5]} 9. c4 {[%clk 0:02:23.8]} 9... dxe4
{[%clk 0:02:37.4]} 10. Nxe4 {[%clk 0:02:22.3]} 10... Bxh2+ {[%clk 0:02:37.9]}
11. Kxh2 {[%clk 0:02:16]} 11... Qh4+ {[%clk 0:02:38]} 12. Kg1 {[%clk 0:02:16.6]}
12... Qxe4 {[%clk 0:02:38.6]} 13. Re1 {[%clk 0:02:12.9]} 13... Qg6 {[%clk
0:02:33.1]} 14. Qf3 {[%clk 0:02:01.9]} 14... Ne7 {[%clk 0:02:21.4]} 15. Re4
{[%clk 0:01:19.2]} 15... h5 {[%clk 0:02:13.9]} 16. b3 {[%clk 0:00:56.9]} 16...
Rc8 {[%clk 0:01:56.9]} 17. Re5 {[%clk 0:00:23.3]} 17... f6 {[%clk 0:01:28.4]}
18. Ra5 {[%clk 0:00:17.1]} 18... e5 {[%clk 0:01:25.6]} 19. Ba3 {[%clk
0:00:14.2]} 19... Rc7 {[%clk 0:00:34.7]} 20. Bd6 {[%clk 0:00:13.2]} 20... Rb7
{[%clk 0:00:15.8]} 21. Bxe7 {[%clk 0:00:10.8]} 21... exd4 {[%clk 0:00:16.3]} 22.
Re1 {[%clk 0:00:08.7]} 22... Kf7 {[%clk 0:00:16.8]} 23. Bd6 {[%clk 0:00:02.7]}
23... Re8 {[%clk 0:00:15.2]} 24. Rxe8 {[%clk 0:00:01.6]} 24... Bxe8 {[%clk
0:00:15.8]} 25. Bc5 {[%clk 0:00:01.6]} 25... d3 {[%clk 0:00:12]} 26. Qe3 {[%clk
0:00:01.4]} 26... Qf5 {[%clk 0:00:07.8]} 27. Rxa7 {[%clk 0:00:01.1]} 27... Rxa7
{[%clk 0:00:07.2]} 28. Bxa7 {[%clk 0:00:02]} 28... Qd7 {[%clk 0:00:04.2]} 29.
Qd2 {[%clk 0:00:01.9]} 29... Qxa7 {[%clk 0:00:03.8]} 30. Qxd3 {[%clk 0:00:02.4]}
30... Qxa2 {[%clk 0:00:04.1]} 31. b4 {[%clk 0:00:01.7]} 31... Qa1+ {[%clk
0:00:04.2]} 32. Kh2 {[%clk 0:00:01.8]} 32... Qe5+ {[%clk 0:00:04.8]} 33. g3
{[%clk 0:00:02.5]} 33... h4 {[%clk 0:00:05.3]} 34. Kg2 {[%clk 0:00:01.6]} 34...
hxg3 {[%clk 0:00:05.7]} 35. fxg3 {[%clk 0:00:02.5]} 35... Ke7 {[%clk 0:00:05.7]}
36. c5 {[%clk 0:00:03]} 36... Bd7 {[%clk 0:00:05.6]} 37. Kf2 {[%clk 0:00:02.5]}
37... Be6 {[%clk 0:00:06]} 38. Qe3 {[%clk 0:00:02.5]} 38... Qxe3+ {[%clk
0:00:05.6]} 39. Kxe3 {[%clk 0:00:03.4]} 39... Bc4 {[%clk 0:00:05.2]} 40. Kd4
{[%clk 0:00:03.4]} 40... Bb5 {[%clk 0:00:05.8]} 41. Ke4 {[%clk 0:00:04]} 41...
Ke6 {[%clk 0:00:06.4]} 42. Kf4 {[%clk 0:00:04.5]} 42... g6 {[%clk 0:00:06.9]}
43. Ke4 {[%clk 0:00:04.5]} 43... f5+ {[%clk 0:00:07.6]} 44. Kf4 {[%clk
0:00:05.1]} 44... Kf6 {[%clk 0:00:08.3]} 45. g4 {[%clk 0:00:05.4]} 45... fxg4
{[%clk 0:00:08.1]} 46. Kxg4 {[%clk 0:00:06.3]} 46... Ke5 {[%clk 0:00:08.7]} 47.
Kg5 {[%clk 0:00:06.5]} 47... Kd4 {[%clk 0:00:09.4]} 48. Kxg6 {[%clk 0:00:07.3]}
48... Kc4 {[%clk 0:00:10.1]} 49. Kf5 {[%clk 0:00:07.9]} 49... Kxb4 {[%clk
0:00:10.8]} 50. Ke4 {[%clk 0:00:08.5]} 50... Kxc5 {[%clk 0:00:11.4]} 51. Ke3
{[%clk 0:00:09.3]} 51... Kb4 {[%clk 0:00:12]} 52. Kd2 {[%clk 0:00:10.2]} 52...
c5 {[%clk 0:00:12.6]} 53. Kc2 {[%clk 0:00:11.1]} 53... c4 {[%clk 0:00:13.3]} 54.
Kb2 {[%clk 0:00:12]} 54... c3+ {[%clk 0:00:13.7]} 55. Kc2 {[%clk 0:00:12.2]}
55... Kc4 {[%clk 0:00:14.3]} 56. Kc1 {[%clk 0:00:12.6]} 56... Kb3 {[%clk
0:00:14.6]} 57. Kb1 {[%clk 0:00:13]} 57... c2+ {[%clk 0:00:15.2]} 58. Kc1 {[%clk
0:00:12.1]} 58... Ba4 {[%clk 0:00:15.7]} 59. Kd2 {[%clk 0:00:12.3]} 59... Kb2
{[%clk 0:00:16.3]} 0-1

[Event "*** SCC Grand Prix: Titled Tuesday Blitz"]
[Site "Chess.com"]
[Date "2020.09.08"]
[Round "3"]
[White "Batcu"]
[Black "Zhani-Z"]
[Result "0-1"]
[WhiteElo "2248"]
[BlackElo "2502"]
[TimeControl "180+1"]
[EndTime "10:30:16 PDT"]
[Termination "Zhani-Z won on time"]

1. d4 {[%clk 0:03:00.9]} 1... Nf6 {[%clk 0:02:59.1]} 2. c4 {[%clk 0:03:00.9]}
2... e6 {[%clk 0:02:59.3]} 3. Nf3 {[%clk 0:02:59.5]} 3... Bb4+ {[%clk
0:02:58.2]} 4. Nbd2 {[%clk 0:02:59.1]} 4... O-O {[%clk 0:02:55.5]} 5. a3 {[%clk
0:02:59.1]} 5... Be7 {[%clk 0:02:56]} 6. e4 {[%clk 0:02:58.3]} 6... d6 {[%clk
0:02:56.5]} 7. Bd3 {[%clk 0:02:57.8]} 7... e5 {[%clk 0:02:56.6]} 8. dxe5 {[%clk
0:02:51]} 8... dxe5 {[%clk 0:02:56.4]} 9. Nxe5 {[%clk 0:02:51]} 9... Re8 {[%clk
0:02:50.8]} 10. Qc2 {[%clk 0:01:48.1]} 10... Bc5 {[%clk 0:01:22.8]} 11. Nef3
{[%clk 0:01:43.9]} 11... Ng4 {[%clk 0:01:17.7]} 12. O-O {[%clk 0:01:38.7]} 12...
Nc6 {[%clk 0:01:11.7]} 13. b4 {[%clk 0:01:37.4]} 13... Bxf2+ {[%clk 0:00:54.9]}
14. Rxf2 {[%clk 0:01:33.2]} 14... Nxf2 {[%clk 0:00:51]} 15. Kxf2 {[%clk
0:01:33.1]} 15... Nd4 {[%clk 0:00:48.1]} 16. Qc3 {[%clk 0:01:31.2]} 16... Ne6
{[%clk 0:00:27.5]} 17. Bb2 {[%clk 0:01:27.7]} 17... f6 {[%clk 0:00:27.9]} 18. c5
{[%clk 0:01:24.9]} 18... Nf4 {[%clk 0:00:24.8]} 19. Bc4+ {[%clk 0:01:23.3]}
19... Be6 {[%clk 0:00:25.1]} 20. Nd4 {[%clk 0:00:59.6]} 20... Bxc4 {[%clk
0:00:23.6]} 21. Qxc4+ {[%clk 0:00:58.7]} 21... Kh8 {[%clk 0:00:23.3]} 22. g3
{[%clk 0:00:53.6]} 22... Nh3+ {[%clk 0:00:20.7]} 23. Kg2 {[%clk 0:00:52.7]}
23... Ng5 {[%clk 0:00:21.6]} 24. Re1 {[%clk 0:00:52]} 24... Qd7 {[%clk
0:00:22.1]} 25. N4f3 {[%clk 0:00:28]} 25... Rad8 {[%clk 0:00:17.9]} 26. Re2
{[%clk 0:00:21.2]} 26... Qh3+ {[%clk 0:00:09.4]} 27. Kg1 {[%clk 0:00:09.1]}
27... Ne6 {[%clk 0:00:05]} 28. e5 {[%clk 0:00:04.9]} 28... f5 {[%clk 0:00:05.2]}
29. Nf1 {[%clk 0:00:03.4]} 29... Qh5 {[%clk 0:00:04.5]} 30. Rf2 {[%clk
0:00:01.2]} 30... f4 {[%clk 0:00:04.8]} 31. Qxf4 {[%clk 0:00:01.4]} 31... Nxf4
{[%clk 0:00:04.3]} 32. gxf4 {[%clk 0:00:02.2]} 32... Rf8 {[%clk 0:00:04.6]} 33.
Ng3 {[%clk 0:00:01.7]} 33... Qg4 {[%clk 0:00:04.3]} 34. f5 {[%clk 0:00:02]}
34... Rd1+ {[%clk 0:00:03.3]} 35. Kg2 {[%clk 0:00:02.4]} 35... Rd3 {[%clk
0:00:03.1]} 36. e6 {[%clk 0:00:02.9]} 36... Re8 {[%clk 0:00:01.8]} 37. Re2
{[%clk 0:00:02.8]} 37... Kg8 {[%clk 0:00:01.9]} 38. Ne5 {[%clk 0:00:02.8]} 38...
Qf3+ {[%clk 0:00:02.8]} 39. Kg1 {[%clk 0:00:02.7]} 39... Rb3 {[%clk 0:00:03]}
40. Nxf3 {[%clk 0:00:02.2]} 40... Rxf3 {[%clk 0:00:03.2]} 41. Rd2 {[%clk
0:00:02.8]} 41... Rb3 {[%clk 0:00:02.2]} 42. Rc2 {[%clk 0:00:02.5]} 42... Rd3
{[%clk 0:00:02.2]} 43. Be5 {[%clk 0:00:02.7]} 43... Rd1+ {[%clk 0:00:03.1]} 44.
Kg2 {[%clk 0:00:02.5]} 44... Re1 {[%clk 0:00:03.5]} 45. Re2 {[%clk 0:00:02.3]}
45... Rxe2+ {[%clk 0:00:02.8]} 46. Nxe2 {[%clk 0:00:02.2]} 46... g6 {[%clk
0:00:03.7]} 47. Nd4 {[%clk 0:00:01.3]} 47... gxf5 {[%clk 0:00:03.2]} 48. Nxf5
{[%clk 0:00:01.7]} 48... Rxe6 {[%clk 0:00:03.8]} 0-1

[Event "*** SCC Grand Prix: Titled Tuesday Blitz"]
[Site "Chess.com"]
[Date "2020.09.08"]
[Round "3"]
[White "Chess_Dog06"]
[Black "Margency"]
[Result "0-1"]
[WhiteElo "2267"]
[BlackElo "2660"]
[TimeControl "180+1"]
[EndTime "10:30:16 PDT"]
[Termination "Margency won by resignation"]

1. Nf3 {[%clk 0:03:00.9]} 1... Nf6 {[%clk 0:02:58.8]} 2. g3 {[%clk 0:03:00.9]}
2... g6 {[%clk 0:02:59.1]} 3. Bg2 {[%clk 0:03:00.7]} 3... Bg7 {[%clk 0:03:00]}
4. O-O {[%clk 0:03:00.8]} 4... d5 {[%clk 0:03:00.6]} 5. d4 {[%clk 0:03:01.4]}
5... O-O {[%clk 0:03:00.4]} 6. c4 {[%clk 0:03:01.1]} 6... dxc4 {[%clk
0:03:01.3]} 7. Nbd2 {[%clk 0:03:00.6]} 7... c3 {[%clk 0:03:00.2]} 8. bxc3 {[%clk
0:03:00.4]} 8... c5 {[%clk 0:03:00.8]} 9. e3 {[%clk 0:02:59.5]} 9... Nc6 {[%clk
0:02:57.3]} 10. Ba3 {[%clk 0:02:58.3]} 10... Nd7 {[%clk 0:02:45.5]} 11. Qa4
{[%clk 0:02:52.7]} 11... a6 {[%clk 0:02:41.5]} 12. Rac1 {[%clk 0:02:49.1]} 12...
b5 {[%clk 0:02:41]} 13. Qc2 {[%clk 0:02:49]} 13... Bb7 {[%clk 0:02:39.8]} 14.
Rfd1 {[%clk 0:02:43.6]} 14... Qa5 {[%clk 0:02:35.8]} 15. Bb2 {[%clk 0:02:43]}
15... Rac8 {[%clk 0:02:33.9]} 16. Ba1 {[%clk 0:02:42.4]} 16... Rfd8 {[%clk
0:02:26.3]} 17. Qb1 {[%clk 0:02:36.1]} 17... Qa4 {[%clk 0:02:21.4]} 18. Qb3
{[%clk 0:02:34.9]} 18... Nb6 {[%clk 0:01:57.3]} 19. dxc5 {[%clk 0:02:23.6]}
19... Na5 {[%clk 0:01:55.6]} 20. Qxa4 {[%clk 0:02:22.3]} 20... Nxa4 {[%clk
0:01:55.5]} 21. Nd4 {[%clk 0:02:06]} 21... Bxg2 {[%clk 0:01:53.7]} 22. Kxg2
{[%clk 0:02:05.6]} 22... Nxc5 {[%clk 0:01:46.3]} 23. N2b3 {[%clk 0:02:04.6]}
23... Ncb7 {[%clk 0:01:27]} 24. Bb2 {[%clk 0:01:32.1]} 24... Nc4 {[%clk
0:01:25.4]} 25. Ba1 {[%clk 0:01:30.2]} 25... e5 {[%clk 0:01:22.4]} 26. Nf3
{[%clk 0:01:27.5]} 26... Kf8 {[%clk 0:01:10.4]} 27. Kf1 {[%clk 0:01:10.7]} 27...
Ke8 {[%clk 0:01:08.7]} 28. Ke2 {[%clk 0:01:10.9]} 28... h6 {[%clk 0:01:08.3]}
29. Rxd8+ {[%clk 0:01:10.5]} 29... Rxd8 {[%clk 0:01:07.9]} 30. Rd1 {[%clk
0:01:11.4]} 30... Rc8 {[%clk 0:01:03.8]} 31. Nfd2 {[%clk 0:01:10.6]} 31... Nbd6
{[%clk 0:01:00.8]} 32. Nxc4 {[%clk 0:01:03.9]} 32... Nxc4 {[%clk 0:01:01.7]} 33.
Nd2 {[%clk 0:01:04.4]} 33... Ke7 {[%clk 0:00:53.6]} 34. Nxc4 {[%clk 0:00:57.9]}
34... Rxc4 {[%clk 0:00:54.5]} 35. Bb2 {[%clk 0:00:57.9]} 35... Ra4 {[%clk
0:00:51.7]} 36. a3 {[%clk 0:00:48.9]} 36... e4 {[%clk 0:00:51.7]} 37. Kd2 {[%clk
0:00:45.7]} 37... Rc4 {[%clk 0:00:51]} 38. Kc2 {[%clk 0:00:41.1]} 38... f5
{[%clk 0:00:51]} 39. Kb3 {[%clk 0:00:40.7]} 39... h5 {[%clk 0:00:51]} 40. Rd5
{[%clk 0:00:38.2]} 40... Bf6 {[%clk 0:00:47.9]} 41. Rd1 {[%clk 0:00:31.6]} 41...
Ke6 {[%clk 0:00:47.8]} 42. Ra1 {[%clk 0:00:31.2]} 42... Kd5 {[%clk 0:00:37.8]}
43. Rd1+ {[%clk 0:00:23]} 43... Kc6 {[%clk 0:00:37.3]} 44. Ra1 {[%clk
0:00:20.9]} 44... h4 {[%clk 0:00:34.9]} 45. a4 {[%clk 0:00:19.5]} 45... Rxa4
{[%clk 0:00:33.4]} 46. Rxa4 {[%clk 0:00:19.2]} 46... bxa4+ {[%clk 0:00:34]} 47.
Kxa4 {[%clk 0:00:20.1]} 47... Kc5 {[%clk 0:00:33.9]} 48. Kb3 {[%clk 0:00:13.3]}
48... h3 {[%clk 0:00:30.8]} 49. Ba3+ {[%clk 0:00:13.9]} 49... Kc6 {[%clk
0:00:27.8]} 50. Kc4 {[%clk 0:00:13.9]} 50... a5 {[%clk 0:00:26.6]} 51. Bf8
{[%clk 0:00:13.2]} 51... g5 {[%clk 0:00:23.6]} 52. Ba3 {[%clk 0:00:12.8]} 52...
Be5 {[%clk 0:00:20.6]} 53. Be7 {[%clk 0:00:11.9]} 53... f4 {[%clk 0:00:18.5]}
54. Bxg5 {[%clk 0:00:11.8]} 54... fxg3 {[%clk 0:00:18.8]} 55. fxg3 {[%clk
0:00:09.6]} 55... Bxg3 {[%clk 0:00:19.4]} 56. Bf4 {[%clk 0:00:09.6]} 56... Bxf4
{[%clk 0:00:18.4]} 57. exf4 {[%clk 0:00:10.5]} 57... a4 {[%clk 0:00:18.4]} 58.
f5 {[%clk 0:00:08.1]} 58... a3 {[%clk 0:00:18.1]} 59. Kb3 {[%clk 0:00:08.1]}
59... e3 {[%clk 0:00:18.3]} 60. f6 {[%clk 0:00:07.2]} 60... Kd6 {[%clk
0:00:18.6]} 0-1

[Event "*** SCC Grand Prix: Titled Tuesday Blitz"]
[Site "Chess.com"]
[Date "2020.09.08"]
[Round "3"]
[White "chessbia"]
[Black "awesomevishesh"]
[Result "0-1"]
[WhiteElo "2166"]
[BlackElo "2392"]
[TimeControl "180+1"]
[EndTime "10:30:16 PDT"]
[Termination "awesomevishesh won on time"]

1. d4 {[%clk 0:03:00.9]} 1... Nf6 {[%clk 0:03:00]} 2. c4 {[%clk 0:03:01.8]} 2...
g6 {[%clk 0:02:59.9]} 3. Nc3 {[%clk 0:03:02.1]} 3... Bg7 {[%clk 0:03:00.1]} 4.
e4 {[%clk 0:03:02.6]} 4... d6 {[%clk 0:03:00.3]} 5. h3 {[%clk 0:03:03]} 5... O-O
{[%clk 0:03:00.2]} 6. Be3 {[%clk 0:03:03.5]} 6... Na6 {[%clk 0:02:56]} 7. g4
{[%clk 0:03:02.5]} 7... c5 {[%clk 0:02:54.7]} 8. d5 {[%clk 0:03:02.5]} 8... e6
{[%clk 0:02:49.4]} 9. dxe6 {[%clk 0:02:55.8]} 9... Bxe6 {[%clk 0:02:40.8]} 10.
Nf3 {[%clk 0:02:52.7]} 10... Re8 {[%clk 0:02:32.3]} 11. Be2 {[%clk 0:02:47.6]}
11... Nc7 {[%clk 0:01:33.9]} 12. O-O {[%clk 0:02:41.6]} 12... h5 {[%clk
0:01:10.4]} 13. Nd2 {[%clk 0:02:15.4]} 13... hxg4 {[%clk 0:01:08.9]} 14. hxg4
{[%clk 0:02:15.2]} 14... Nh7 {[%clk 0:01:01.8]} 15. Kg2 {[%clk 0:02:05.5]} 15...
b5 {[%clk 0:00:55.6]} 16. cxb5 {[%clk 0:01:59.4]} 16... d5 {[%clk 0:00:54.8]}
17. exd5 {[%clk 0:01:52.8]} 17... Nxd5 {[%clk 0:00:53.8]} 18. Nxd5 {[%clk
0:01:38]} 18... Bxd5+ {[%clk 0:00:49.6]} 19. Bf3 {[%clk 0:01:38.2]} 19... Bxb2
{[%clk 0:00:39]} 20. Rb1 {[%clk 0:01:35.9]} 20... Bd4 {[%clk 0:00:33]} 21. Bxd4
{[%clk 0:01:26.3]} 21... cxd4 {[%clk 0:00:33]} 22. a4 {[%clk 0:01:17.5]} 22...
Ng5 {[%clk 0:00:32]} 23. Rb4 {[%clk 0:00:57.3]} 23... Nxf3 {[%clk 0:00:30]} 24.
Nxf3 {[%clk 0:00:56]} 24... Re4 {[%clk 0:00:29.9]} 25. Kh3 {[%clk 0:00:42.7]}
25... Rf4 {[%clk 0:00:12.2]} 26. Nh2 {[%clk 0:00:26.4]} 26... Qf6 {[%clk
0:00:09.3]} 27. f3 {[%clk 0:00:22.2]} 27... Kg7 {[%clk 0:00:09]} 28. Kg2 {[%clk
0:00:17.9]} 28... Rh8 {[%clk 0:00:08.7]} 29. Qe1 {[%clk 0:00:16.4]} 29... Qg5
{[%clk 0:00:07.9]} 30. Qg3 {[%clk 0:00:15.7]} 30... Qf6 {[%clk 0:00:05.1]} 31.
Rf2 {[%clk 0:00:15.9]} 31... g5 {[%clk 0:00:04.9]} 32. Nf1 {[%clk 0:00:15.1]}
32... Qg6 {[%clk 0:00:05]} 33. Nd2 {[%clk 0:00:14.3]} 33... Qh6 {[%clk
0:00:05.2]} 34. Kf1 {[%clk 0:00:14.5]} 34... Qh1+ {[%clk 0:00:04.9]} 35. Ke2
{[%clk 0:00:15]} 35... Qc1 {[%clk 0:00:04.3]} 36. Rxd4 {[%clk 0:00:14.6]} 36...
Re8+ {[%clk 0:00:04.6]} 37. Kd3 {[%clk 0:00:13.8]} 37... Rxd4+ {[%clk
0:00:04.7]} 38. Kxd4 {[%clk 0:00:14.2]} 38... Qb2+ {[%clk 0:00:04.9]} 39. Kxd5
{[%clk 0:00:13]} 39... Rd8+ {[%clk 0:00:04.8]} 40. Kc5 {[%clk 0:00:10.3]} 40...
Qd4+ {[%clk 0:00:04.7]} 41. Kc6 {[%clk 0:00:10]} 41... Qd7+ {[%clk 0:00:04.3]}
42. Kc5 {[%clk 0:00:09.6]} 42... Rc8+ {[%clk 0:00:04.7]} 43. Kb4 {[%clk
0:00:08.2]} 43... Qd4+ {[%clk 0:00:04.7]} 44. Ka5 {[%clk 0:00:04.4]} 44... Qb6+
{[%clk 0:00:04]} 45. Kb4 {[%clk 0:00:04.6]} 45... Qc5+ {[%clk 0:00:03.3]} 46.
Ka5 {[%clk 0:00:04.5]} 46... Qc3+ {[%clk 0:00:02.7]} 47. Ka6 {[%clk 0:00:04.8]}
47... Qd4 {[%clk 0:00:02.6]} 0-1

[Event "*** SCC Grand Prix: Titled Tuesday Blitz"]
[Site "Chess.com"]
[Date "2020.09.08"]
[Round "3"]
[White "M1711"]
[Black "FMalexhdez"]
[Result "1-0"]
[WhiteElo "2490"]
[BlackElo "2222"]
[TimeControl "180+1"]
[EndTime "10:30:18 PDT"]
[Termination "M1711 won on time"]

1. e4 {[%clk 0:03:00.9]} 1... c5 {[%clk 0:02:58.5]} 2. Nf3 {[%clk 0:02:59.4]}
2... d6 {[%clk 0:02:58.7]} 3. b4 {[%clk 0:02:58]} 3... cxb4 {[%clk 0:02:57.8]}
4. d4 {[%clk 0:02:58.4]} 4... g6 {[%clk 0:02:56.6]} 5. a3 {[%clk 0:02:58]} 5...
bxa3 {[%clk 0:02:52.3]} 6. Rxa3 {[%clk 0:02:56.8]} 6... Bg7 {[%clk 0:02:53]} 7.
Bc4 {[%clk 0:02:56]} 7... Nf6 {[%clk 0:02:51.3]} 8. O-O {[%clk 0:02:54.5]} 8...
Nxe4 {[%clk 0:02:37.5]} 9. Re1 {[%clk 0:02:54.6]} 9... d5 {[%clk 0:02:32.5]} 10.
Bd3 {[%clk 0:02:43.1]} 10... Nc6 {[%clk 0:02:27.1]} 11. c4 {[%clk 0:02:40.5]}
11... Nf6 {[%clk 0:02:24.5]} 12. c5 {[%clk 0:02:36.9]} 12... Bg4 {[%clk
0:02:22.5]} 13. Be2 {[%clk 0:02:34.9]} 13... Ne4 {[%clk 0:02:17.1]} 14. Be3
{[%clk 0:02:34]} 14... O-O {[%clk 0:02:15.9]} 15. Nbd2 {[%clk 0:02:31.6]} 15...
e5 {[%clk 0:02:11.4]} 16. Nxe5 {[%clk 0:02:29.1]} 16... Bxe2 {[%clk 0:01:58.7]}
17. Qxe2 {[%clk 0:02:30]} 17... Nxe5 {[%clk 0:01:56.5]} 18. dxe5 {[%clk
0:02:29.2]} 18... Bxe5 {[%clk 0:01:54.9]} 19. Nxe4 {[%clk 0:02:25.8]} 19... dxe4
{[%clk 0:01:54.4]} 20. Qc4 {[%clk 0:02:24.9]} 20... Re8 {[%clk 0:01:47.2]} 21.
g3 {[%clk 0:02:13.5]} 21... Qd7 {[%clk 0:01:43]} 22. Rb1 {[%clk 0:02:01.5]}
22... Qc6 {[%clk 0:01:28.1]} 23. Rb4 {[%clk 0:01:38.3]} 23... Kg7 {[%clk
0:01:18.7]} 24. Qxe4 {[%clk 0:01:33.2]} 24... Qxe4 {[%clk 0:01:16.4]} 25. Rxe4
{[%clk 0:01:33]} 25... a6 {[%clk 0:01:11]} 26. Rb3 {[%clk 0:01:15.9]} 26... Re7
{[%clk 0:01:09.5]} 27. Rxe5 {[%clk 0:01:10.3]} 27... Rxe5 {[%clk 0:01:08.3]} 28.
Bd4 {[%clk 0:01:11]} 28... f6 {[%clk 0:00:59.2]} 29. Rxb7+ {[%clk 0:01:11.4]}
29... Kh6 {[%clk 0:00:55.1]} 30. Bxe5 {[%clk 0:01:10.7]} 30... fxe5 {[%clk
0:00:55.2]} 31. Re7 {[%clk 0:01:06.8]} 31... a5 {[%clk 0:00:47.6]} 32. Rxe5
{[%clk 0:01:07]} 32... a4 {[%clk 0:00:48.2]} 33. Re2 {[%clk 0:01:04.1]} 33... a3
{[%clk 0:00:46.9]} 34. Ra2 {[%clk 0:01:04.1]} 34... Kg5 {[%clk 0:00:47]} 35. c6
{[%clk 0:01:04.4]} 35... h5 {[%clk 0:00:40]} 36. c7 {[%clk 0:01:03.8]} 36... Rc8
{[%clk 0:00:40.2]} 37. Rxa3 {[%clk 0:01:01.4]} 37... Rxc7 {[%clk 0:00:40.8]} 38.
Kg2 {[%clk 0:01:00.2]} 38... Rc5 {[%clk 0:00:37.8]} 39. Ra7 {[%clk 0:00:56.1]}
39... h4 {[%clk 0:00:37.2]} 40. Ra4 {[%clk 0:00:32.3]} 40... hxg3 {[%clk
0:00:36.4]} 41. hxg3 {[%clk 0:00:32.6]} 41... Rb5 {[%clk 0:00:35.4]} 42. Rc4
{[%clk 0:00:32.1]} 42... Ra5 {[%clk 0:00:35]} 43. Kh3 {[%clk 0:00:29.6]} 43...
Rd5 {[%clk 0:00:32.2]} 44. Re4 {[%clk 0:00:29]} 44... Ra5 {[%clk 0:00:28.4]} 45.
Rg4+ {[%clk 0:00:24.3]} 45... Kh5 {[%clk 0:00:20]} 46. Rh4+ {[%clk 0:00:22]}
46... Kg5 {[%clk 0:00:20]} 47. Rh8 {[%clk 0:00:21.6]} 47... Ra4 {[%clk
0:00:17.6]} 48. Rf8 {[%clk 0:00:17.8]} 48... Kh5 {[%clk 0:00:16.3]} 49. f4
{[%clk 0:00:15.6]} 49... Kh6 {[%clk 0:00:16.6]} 50. Rf7 {[%clk 0:00:14.7]} 50...
Ra5 {[%clk 0:00:14.2]} 51. Kg4 {[%clk 0:00:14]} 51... Rb5 {[%clk 0:00:13]} 52.
Rd7 {[%clk 0:00:13.1]} 52... Ra5 {[%clk 0:00:12.7]} 53. Re7 {[%clk 0:00:13]}
53... Rc5 {[%clk 0:00:10.7]} 54. Re5 {[%clk 0:00:13.4]} 54... Rc1 {[%clk
0:00:08.8]} 55. Re6 {[%clk 0:00:13.4]} 55... Kg7 {[%clk 0:00:07.5]} 56. Kg5
{[%clk 0:00:10.5]} 56... Rc5+ {[%clk 0:00:06.3]} 57. Re5 {[%clk 0:00:11.1]} 1-0

[Event "*** SCC Grand Prix: Titled Tuesday Blitz"]
[Site "Chess.com"]
[Date "2020.09.08"]
[Round "3"]
[White "KuzubovYuriy"]
[Black "Karacsonyi_Gellert"]
[Result "1-0"]
[WhiteElo "2896"]
[BlackElo "2640"]
[TimeControl "180+1"]
[EndTime "10:30:20 PDT"]
[Termination "KuzubovYuriy won by resignation"]

1. d4 {[%clk 0:03:00.9]} 1... Nf6 {[%clk 0:02:59.7]} 2. c4 {[%clk 0:03:00.5]}
2... e6 {[%clk 0:02:59.9]} 3. Nf3 {[%clk 0:03:00]} 3... d5 {[%clk 0:03:00.2]} 4.
g3 {[%clk 0:02:56.8]} 4... dxc4 {[%clk 0:02:59.5]} 5. Bg2 {[%clk 0:02:56.1]}
5... Bd7 {[%clk 0:02:59.5]} 6. Ne5 {[%clk 0:02:54.3]} 6... Bc6 {[%clk
0:02:59.5]} 7. Nxc6 {[%clk 0:02:54.8]} 7... Nxc6 {[%clk 0:03:00.4]} 8. e3 {[%clk
0:02:55.2]} 8... Qd7 {[%clk 0:03:00.8]} 9. O-O {[%clk 0:02:55.3]} 9... O-O-O
{[%clk 0:03:01.3]} 10. Nc3 {[%clk 0:02:54.1]} 10... Nd5 {[%clk 0:03:00.3]} 11.
Qe2 {[%clk 0:02:50.1]} 11... h5 {[%clk 0:02:58.2]} 12. Qxc4 {[%clk 0:02:45]}
12... h4 {[%clk 0:02:58.6]} 13. b4 {[%clk 0:02:36.2]} 13... hxg3 {[%clk
0:02:41.8]} 14. hxg3 {[%clk 0:02:33.9]} 14... Bxb4 {[%clk 0:02:35.7]} 15. Na4
{[%clk 0:02:25.8]} 15... f5 {[%clk 0:02:20.7]} 16. Rb1 {[%clk 0:02:23.3]} 16...
g5 {[%clk 0:02:11.3]} 17. a3 {[%clk 0:02:20.4]} 17... Ba5 {[%clk 0:02:10.6]} 18.
Rxb7 {[%clk 0:02:00.8]} 18... Qh7 {[%clk 0:02:09.3]} 19. Rd1 {[%clk 0:02:00]}
19... Nb8 {[%clk 0:00:50.7]} 20. Nc5 {[%clk 0:01:47.3]} 20... Bb6 {[%clk
0:00:44.3]} 21. Rxb8+ {[%clk 0:01:18.1]} 21... Kxb8 {[%clk 0:00:44.1]} 22. Nxe6
{[%clk 0:01:17.2]} 22... Rd6 {[%clk 0:00:28]} 23. Bxd5 {[%clk 0:01:06.5]} 23...
Rxe6 {[%clk 0:00:27.6]} 24. Bg2 {[%clk 0:00:53.9]} 24... Rh6 {[%clk 0:00:26.5]}
25. Kf1 {[%clk 0:00:44.4]} 25... f4 {[%clk 0:00:21.2]} 26. exf4 {[%clk 0:00:29]}
26... Re8 {[%clk 0:00:20.6]} 27. Be3 {[%clk 0:00:15.1]} 27... gxf4 {[%clk
0:00:19.5]} 28. gxf4 {[%clk 0:00:15.3]} 28... Rg6 {[%clk 0:00:08.4]} 29. Bf3
{[%clk 0:00:14.3]} 29... Qh3+ {[%clk 0:00:07.7]} 30. Ke2 {[%clk 0:00:13.5]}
30... Qd7 {[%clk 0:00:04.9]} 31. Rb1 {[%clk 0:00:10.6]} 31... Rf6 {[%clk
0:00:03.4]} 32. a4 {[%clk 0:00:10.3]} 32... Kc8 {[%clk 0:00:03]} 33. a5 {[%clk
0:00:10.4]} 33... Kd8 {[%clk 0:00:02.9]} 34. axb6 {[%clk 0:00:10.4]} 34... Rxb6
{[%clk 0:00:02.5]} 35. Rxb6 {[%clk 0:00:10]} 35... axb6 {[%clk 0:00:03.4]} 36.
d5 {[%clk 0:00:09.9]} 36... Qd6 {[%clk 0:00:03.3]} 37. f5 {[%clk 0:00:09.7]}
37... Qa3 {[%clk 0:00:03.4]} 38. Qh4+ {[%clk 0:00:09.1]} 38... Qe7 {[%clk
0:00:03.3]} 39. Qxe7+ {[%clk 0:00:08.1]} 39... Kxe7 {[%clk 0:00:04.2]} 40. Kd3
{[%clk 0:00:08]} 40... Kd6 {[%clk 0:00:04.2]} 41. Bf4+ {[%clk 0:00:07.5]} 41...
Kd7 {[%clk 0:00:04.2]} 42. Be4 {[%clk 0:00:07.2]} 42... Ra8 {[%clk 0:00:03.5]}
43. f3 {[%clk 0:00:07.5]} 43... Ra4 {[%clk 0:00:03.5]} 44. Be5 {[%clk
0:00:06.9]} 44... Rb4 {[%clk 0:00:03.4]} 45. f6 {[%clk 0:00:07]} 45... Rb3+
{[%clk 0:00:03.6]} 46. Kc4 {[%clk 0:00:07]} 46... Ra3 {[%clk 0:00:03.3]} 47.
Bf5+ {[%clk 0:00:06.9]} 47... Ke8 {[%clk 0:00:03.1]} 48. Bg6+ {[%clk 0:00:07.1]}
48... Kf8 {[%clk 0:00:03]} 49. Bxc7 {[%clk 0:00:06.3]} 49... Rxf3 {[%clk
0:00:03.1]} 50. Bd6+ {[%clk 0:00:06.5]} 50... Kg8 {[%clk 0:00:03.1]} 51. f7+
{[%clk 0:00:07]} 51... Kg7 {[%clk 0:00:03]} 52. f8=Q+ {[%clk 0:00:07]} 52...
Rxf8 {[%clk 0:00:03.4]} 53. Bxf8+ {[%clk 0:00:07.9]} 53... Kxf8 {[%clk
0:00:01.4]} 54. Kb5 {[%clk 0:00:08.1]} 54... Ke7 {[%clk 0:00:02.3]} 55. Kxb6
{[%clk 0:00:08.2]} 55... Kd6 {[%clk 0:00:03.2]} 56. Be4 {[%clk 0:00:08.4]} 56...
Kd7 {[%clk 0:00:03.8]} 57. Kc5 {[%clk 0:00:08.2]} 1-0